bitfinex/quotes_SOLUSD_20240914
["timestamp","ask_amount","ask_price","bid_price","bid_amount"]
[1726326074739,0.12549,138.03,138.01,0.2558701]
[1726326075397,15.81054211,138.03,138.01,0.2558701]
[1726326076417,23.902374,138.02,138.01,0.2558701]
[1726326076624,24.027864,138.02,138.01,0.2558701]
[1726326077605,45.903354,138.02,138.01,0.2558701]
[1726326079698,45.903354,138.02,137.97,0.2558701]
[1726326079924,0.12549,138.01,137.97,0.2558701]
[1726326082618,7.37149,138.01,137.97,0.2558701]
[1726326082819,34.62595971,138.0,137.97,0.2558701]
[1726326083615,0.25098,137.99,137.97,0.2558701]
[1726326083801,0.12549,137.98,137.97,0.2558701]
[1726326084202,52.773384,138.0,137.97,0.2558701]
[1726326084436,0.12549,137.99,137.97,0.2558701]
[1726326086809,0.25098,137.99,137.97,0.2558701]
[1726326087126,23.776884,137.98,137.97,0.2558701]
[1726326087631,23.902374,137.98,137.97,0.2558701]
[1726326088016,35.46415403,137.99,137.97,0.2558701]
[1726326088325,13.71415403,137.99,137.97,0.2558701]
[1726326089227,23.776884,137.99,137.97,0.2558701]
[1726326089925,37.23601053,137.99,137.97,0.2558701]
[1726326090116,58.98601053,137.99,137.97,0.2558701]
[1726326090317,0.12549,137.98,137.97,0.2558701]
[1726326090713,0.12549,137.98,137.93,0.2558701]
[1726326090906,23.776884,137.97,137.93,0.2558701]
[1726326093436,21.87549,137.98,137.93,0.2558701]
[1726326095318,23.902374,137.98,137.93,0.2558701]
[1726326101418,37.15120325,137.98,137.93,0.2558701]
[1726326102740,13.24882925,137.98,137.93,0.2558701]
[1726326103945,13.24882925,137.98,137.94,6.5094]
[1726326111429,28.9959,138.01,137.94,6.5094]
[1726326111430,24.027864,138.0,137.94,6.5094]
[1726326111632,35.08606926,138.02,137.94,6.5094]
[1726326111932,23.402374,138.01,137.94,6.5094]
[1726326112542,13.46155926,138.02,137.94,6.5094]
[1726326112932,13.46155926,138.02,137.95,16.167]
[1726326113336,12.96155926,138.02,137.95,16.167]
[1726326113854,12.83606926,138.02,137.97,6.1309]
[1726326114042,12.83606926,138.02,137.99,16.167]
[1726326114251,11.10494581,138.07,137.99,16.167]
[1726326114436,10.60494581,138.07,137.99,16.167]
[1726326115257,23.776884,138.06,137.99,16.167]
[1726326115430,34.10832811,138.06,137.99,16.167]
[1726326115636,55.85832811,138.06,137.99,16.167]
[1726326115960,0.12549,138.05,137.99,16.167]
[1726326116345,55.85832811,138.06,137.99,16.167]
[1726326116346,55.48381811,138.06,137.99,16.167]
[1726326117454,62.72701811,138.06,137.99,16.167]
[1726326118340,29.24478,138.05,137.99,16.167]
[1726326118634,23.776884,138.04,137.99,16.167]
[1726326123868,16.11311777,138.07,137.99,16.167]
[1726326124859,16.11311777,138.07,138.0,6.1309]
[1726326125233,16.11311777,138.07,138.0,20.22361516]
[1726326125647,13.15564014,138.07,138.0,20.22361516]
[1726326127442,13.15564014,138.07,138.01,16.167]
[1726326128959,23.98708425,138.07,138.01,16.167]
[1726326129834,13.15564014,138.07,138.01,16.167]
[1726326136658,23.902374,138.06,138.01,16.167]
[1726326141142,31.145674,138.06,138.01,16.167]
[1726326141464,23.902374,138.06,138.01,16.167]
[1726326147050,23.776884,138.06,138.01,16.167]
[1726326166890,7.36929,138.05,138.01,16.167]
[1726326167094,23.776884,138.04,138.01,16.167]
[1726326167391,0.25098,138.03,138.0,6.1309]
[1726326167584,7.8270011,138.03,138.0,6.1309]
[1726326167912,23.776884,138.02,137.98,16.3472]
[1726326168393,45.526884,138.02,137.98,16.3472]
[1726326169193,0.25098,138.01,137.97,0.2558701]
[1726326169363,0.12549,138.0,137.97,0.2558701]
[1726326169682,23.902374,138.0,137.97,0.2558701]
[1726326170482,21.75,138.02,137.97,0.2558701]
[1726326170674,23.902374,138.01,137.97,0.2558701]
[1726326170979,45.652374,138.01,137.97,0.2558701]
[1726326171182,0.25098,138.0,137.97,0.2558701]
[1726326171490,7.2475,137.98,137.93,0.2558701]
[1726326173876,24.027864,137.97,137.93,0.2558701]
[1726326174076,53.025764,137.97,137.93,0.2558701]
[1726326174369,45.777864,137.97,137.93,0.2558701]
[1726326175271,53.025864,137.97,137.93,0.2558701]
[1726326175874,7.2485,137.96,137.93,0.2558701]
[1726326176074,45.777864,137.97,137.93,0.2558701]
[1726326176793,53.025864,137.97,137.93,0.2558701]
[1726326179284,0.12549,137.96,137.93,0.2558701]
[1726326180193,45.652374,137.97,137.93,0.2558701]
[1726326180494,23.902374,137.98,137.93,6.7829701]
[1726326180680,23.902374,137.98,137.93,22.7941701]
[1726326185413,31.46402981,137.98,137.93,22.7941701]
[1726326187603,0.25098,137.97,137.93,22.7941701]
[1726326187810,0.12549,137.96,137.93,22.7941701]
[1726326188604,23.902374,137.96,137.93,22.7941701]
[1726326189188,0.25098,137.95,137.93,0.2558701]
[1726326189505,0.12549,137.94,137.93,0.2558701]
[1726326192804,24.153354,137.94,137.93,0.2558701]
[1726326201714,45.903354,137.94,137.93,0.2558701]
[1726326209297,24.027864,137.94,137.93,0.2558701]
[1726326210218,2.97400327,137.96,137.93,0.2558701]
[1726326210447,7.5628614,137.96,137.93,0.2558701]
[1726326215039,23.776884,137.96,137.93,0.2558701]
[1726326215627,23.902374,137.97,137.93,0.2558701]
[1726326215803,29.43844371,137.98,137.93,0.2558701]
[1726326219023,32.37169073,137.98,137.93,0.2558701]
[1726326222449,10.62169073,137.98,137.93,0.2558701]
[1726326223350,10.49620073,137.98,137.93,0.2558701]
[1726326227850,23.902374,137.97,137.93,0.2558701]
[1726326237046,10.49620073,137.98,137.93,22.6432701]
[1726326246538,0.12549,137.97,137.93,22.6432701]
[1726326246744,24.027864,137.97,137.93,22.6432701]
[1726326246948,24.027864,137.97,137.93,0.2558701]
[1726326246949,56.65930811,137.97,137.93,0.2558701]
[1726326248236,7.2484,137.96,137.93,0.2558701]
[1726326249257,63.90740811,137.97,137.93,0.2558701]
[1726326249637,31.275964,137.97,137.93,0.2558701]
[1726326250370,24.027864,137.97,137.93,0.2558701]
[1726326252163,10.49620073,137.98,137.93,0.2558701]
[1726326254458,34.85930811,137.97,137.93,0.2558701]
[1726326254659,42.10730811,137.97,137.93,0.2558701]
[1726326254969,0.25098,137.96,137.93,0.2558701]
[1726326255371,0.12549,137.96,137.93,0.2558701]
[1726326257981,0.25098,137.96,137.93,0.2558701]
[1726326258138,23.902374,137.95,137.93,0.2558701]
[1726326260354,7.81480379,137.96,137.93,0.2558701]
[1726326260556,7.68931379,137.96,137.93,0.2558701]
[1726326263658,7.56382379,137.96,137.93,0.2558701]
[1726326263963,4.19649818,137.98,137.93,0.2558701]
[1726326264170,11.75910502,137.98,137.93,0.2558701]
[1726326264378,10.49585386,137.98,137.93,0.2558701]
[1726326272863,7.56260684,137.98,137.94,21.7565]
[1726326273075,24.027864,138.01,137.94,21.7565]
[1726326277680,34.25986366,138.01,137.94,21.7565]
[1726326278184,34.13437366,138.01,137.94,21.7565]
[1726326280764,31.023784,137.99,137.94,21.7565]
[1726326281091,23.776884,137.99,137.94,21.7565]
[1726326281665,10.23199966,138.0,137.94,21.7565]
[1726326282185,23.776884,137.99,137.94,21.7565]
[1726326282885,0.12549,137.98,137.94,6.1124]
[1726326283075,0.37647,137.98,137.94,6.1124]
[1726326285673,23.776884,137.97,137.93,0.2558701]
[1726326285870,0.37647,137.96,137.93,0.2558701]
[1726326286072,0.25098,137.96,137.93,0.2558701]
[1726326286273,0.12549,137.96,137.93,0.2558701]
[1726326290380,3.12919578,137.96,137.93,0.2558701]
[1726326293575,0.12549,137.96,137.93,0.2558701]
[1726326294268,23.776884,137.97,137.93,0.2558701]
[1726326294480,8.50937928,138.0,137.93,0.2558701]
[1726326294677,0.12549,137.99,137.93,0.2558701]
[1726326295776,23.902374,137.99,137.93,0.2558701]
[1726326296580,4.24857326,138.0,137.93,0.2558701]
[1726326296785,2.98559398,138.0,137.94,22.8923]
[1726326297099,19.1404502,138.02,137.95,1.44792543]
[1726326297392,19.1404502,138.02,137.95,1.44708574]
[1726326298372,29.3621389,138.02,137.95,1.44708574]
[1726326298604,29.3621389,138.02,137.94,22.8923]
[1726326299292,29.3621389,138.02,137.95,1.44958582]
[1726326299293,22.1167389,138.02,137.95,1.44958582]
[1726326299508,22.1167389,138.02,137.94,22.8923]
[1726326303096,32.34873856,138.02,137.94,22.8923]
[1726326303273,39.59403856,138.02,137.94,22.8923]
[1726326303475,10.23199966,138.01,137.94,22.8923]
[1726326304080,17.47789966,138.01,137.94,22.8923]
[1726326311802,31.274364,138.0,137.94,22.8923]
[1726326312691,24.027864,138.0,137.94,22.8923]
[1726326312888,7.247,137.99,137.94,22.8923]
[1726326313799,31.274364,138.0,137.94,22.8923]
[1726326314504,23.776884,138.0,137.94,22.8923]
[1726326315099,23.902374,138.01,137.94,22.8923]
[1726326315402,22.1167389,138.02,137.95,0.86584469]
[1726326315602,22.1167389,138.02,137.94,22.8923]
[1726326316385,29.3621389,138.02,137.94,22.8923]
[1726326318104,30.62399653,138.02,137.94,22.8923]
[1726326319186,29.3621389,138.02,137.94,22.8923]
[1726326323410,22.1167389,138.02,137.94,22.8923]
[1726326325008,23.902374,138.01,137.94,22.8923]
[1726326325392,34.13437366,138.01,137.94,22.8923]
[1726326330690,0.25098,138.0,137.94,22.8923]
[1726326331210,0.12549,137.99,137.94,22.8923]
[1726326331903,23.902374,137.99,137.94,22.8923]
[1726326332098,0.25098,137.98,137.94,22.8923]
[1726326332306,23.902374,137.97,137.94,22.8923]
[1726326334413,23.902374,137.97,137.93,0.2558701]
[1726326336620,26.89523149,137.97,137.93,0.2558701]
[1726326337219,21.8,137.96,137.93,0.2558701]
[1726326337402,26.89523149,137.97,137.93,0.2558701]
[1726326338812,0.25098,137.96,137.93,0.2558701]
[1726326339122,23.902374,137.95,137.93,0.2558701]
[1726326340002,0.25098,137.94,137.93,0.2558701]
[1726326340202,0.37647,137.94,137.93,0.2558701]
[1726326342622,23.776884,137.95,137.93,0.2558701]
[1726326348207,0.12549,137.94,137.93,0.2558701]
[1726326348434,0.37647,137.94,137.93,0.2558701]
[1726326360519,0.37647,137.94,137.89,0.2558701]
[1726326367243,0.25098,137.93,137.89,0.2558701]
[1726326369924,0.25098,137.93,137.88,22.0775]
[1726326369925,0.25098,137.93,137.88,21.8333701]
[1726326380858,3.22189402,137.93,137.88,21.8333701]
[1726326381150,0.12549,137.91,137.84,22.7505701]
[1726326381350,0.25098,137.91,137.84,22.7505701]
[1726326383337,47.87712846,137.92,137.84,22.7505701]
[1726326383559,46.61354567,137.92,137.84,22.7505701]
[1726326383762,22.71117167,137.92,137.84,22.7505701]
[1726326386355,23.902374,137.91,137.84,22.7505701]
[1726326388961,23.902374,137.91,137.84,6.4678701]
[1726326389957,0.25098,137.9,137.84,0.2558701]
[1726326391352,0.12549,137.89,137.84,0.2558701]
[1726326392170,0.25098,137.9,137.84,0.2558701]
[1726326392540,45.702374,137.91,137.84,0.2558701]
[1726326392759,0.12549,137.9,137.84,0.2558701]
[1726326393646,45.68351421,137.91,137.84,0.2558701]
[1726326398080,0.25098,137.9,137.84,0.2558701]
[1726326398273,0.12549,137.89,137.84,0.2558701]
[1726326398776,23.902374,137.89,137.84,0.2558701]
[1726326402351,23.402374,137.89,137.84,0.2558701]
[1726326403948,16.67929,137.9,137.84,0.2558701]
[1726326404271,16.5538,137.9,137.84,0.2558701]
[1726326417683,22.75870915,137.92,137.86,14.09271516]
[1726326417858,21.49490137,137.92,137.85,46.386954]
[1726326418058,21.49490137,137.92,137.85,22.61007]
[1726326418263,21.49490137,137.92,137.85,22.48458]
[1726326424292,21.49490137,137.92,137.85,22.2336]
[1726326424462,21.49490137,137.92,137.84,0.2558701]
[1726326426884,21.49490137,137.92,137.85,0.25098]
[1726326428777,21.49490137,137.92,137.85,14.78724888]
[1726326428969,21.49490137,137.92,137.86,14.09271516]
[1726326429190,21.49490137,137.92,137.88,14.09271516]
[1726326429381,15.7008,137.94,137.89,14.53643241]
[1726326429570,15.7008,137.94,137.9,0.44419468]
[1726326429976,15.1142,137.98,137.91,14.09271516]
[1726326430265,15.1142,137.98,137.92,0.54619916]
[1726326430464,15.1142,137.98,137.92,14.09271516]
[1726326430988,15.1142,137.98,137.91,14.09271516]
[1726326433098,15.1142,137.98,137.91,0.12549]
[1726326433266,15.1142,137.98,137.91,24.027864]
[1726326435887,15.1142,137.98,137.91,38.12057916]
[1726326437395,15.1142,137.98,137.92,14.09271516]
[1726326440294,15.1142,137.98,137.93,14.09271516]
[1726326443204,15.1142,137.98,137.94,14.09271516]
[1726326444196,15.1142,137.98,137.96,14.09271516]
[1726326444404,0.2558701,137.99,137.96,14.09271516]
[1726326446674,0.2558701,137.99,137.95,14.09271516]
[1726326449281,0.2558701,137.99,137.96,14.09271516]
[1726326450193,0.2558701,137.99,137.98,14.09271516]
[1726326451912,0.2558701,137.99,137.98,38.24606916]
[1726326452706,0.2558701,138.03,137.99,24.027864]
[1726326452896,0.2558701,138.03,138.0,0.12549]
[1726326453092,0.2558701,138.03,138.02,14.09271516]
[1726326453400,0.2558701,138.03,138.02,14.34369516]
[1726326456383,0.2558701,138.03,138.02,38.24606916]
[1726326458988,0.2558701,138.03,138.02,39.0206401]
[1726326459686,0.2558701,138.07,138.04,23.902374]
[1726326459886,0.2558701,138.07,138.06,38.12057916]
[1726326460117,0.2558701,138.07,138.06,38.24606916]
[1726326461312,0.2558701,138.11,138.07,0.25098]
[1726326461497,0.2558701,138.11,138.1,14.09271516]
[1726326461692,0.2558701,138.11,138.08,14.21820516]
[1726326461892,0.2558701,138.11,138.09,0.25098]
[1726326462310,0.2558701,138.11,138.07,24.027864]
[1726326463291,0.2558701,138.11,138.06,14.21820516]
[1726326463491,0.2558701,138.11,138.06,0.12549]
[1726326463722,0.2558701,138.11,138.05,14.09271516]
[1726326463897,0.2558701,138.11,138.06,0.12549]
[1726326464422,0.2558701,138.11,138.04,0.25098]
[1726326464423,15.7321,138.1,138.04,14.34369516]
[1726326464926,15.7321,138.1,138.05,24.027864]
[1726326465299,15.7321,138.1,138.05,14.34369516]
[1726326467509,15.7321,138.1,138.04,23.902374]
[1726326467510,15.7321,138.1,138.04,37.99508916]
[1726326470313,15.7321,138.1,138.05,14.09271516]
[1726326474037,15.7321,138.1,138.04,14.21820516]
[1726326474512,15.7321,138.1,138.04,0.12549]
[1726326477710,15.7321,138.1,138.04,14.21820516]
[1726326479033,15.7321,138.1,138.05,14.34369516]
[1726326479326,15.7321,138.1,138.06,14.09271516]
[1726326479915,15.7321,138.1,138.07,14.09271516]
[1726326480310,15.7321,138.1,138.07,0.25098]
[1726326480832,15.7321,138.1,138.06,23.902374]
[1726326481021,15.7321,138.1,138.05,14.09271516]
[1726326481327,15.7321,138.1,138.04,0.12549]
[1726326481328,0.2558701,138.11,138.09,14.09271516]
[1726326481532,0.2558701,138.11,138.1,14.09271516]
[1726326483329,0.2558701,138.11,138.09,14.09271516]
[1726326483640,0.2558701,138.11,138.08,14.09271516]
[1726326487112,0.2558701,138.11,138.09,14.09271516]
[1726326491938,0.2558701,138.11,138.1,14.09271516]
[1726326494752,0.2558701,138.11,138.08,14.09271516]
[1726326498351,0.2558701,138.11,138.09,14.09271516]
[1726326499922,0.2558701,138.11,138.1,14.09271516]
[1726326500347,0.2558701,138.11,138.1,38.12057916]
[1726326500658,0.2558701,138.11,138.1,38.24606916]
[1726326506635,0.2558701,138.11,138.1,24.153354]
[1726326506955,0.2558701,138.11,138.1,38.24606916]
[1726326520569,15.5590402,138.15,138.11,24.027864]
[1726326520745,0.0117402,138.15,138.11,24.027864]
[1726326521771,22.184,138.18,138.11,24.027864]
[1726326521772,21.6957402,138.18,138.11,24.027864]
[1726326522665,21.1957402,138.18,138.11,24.027864]
[1726326523271,20.6957402,138.18,138.11,24.027864]
[1726326525275,20.1957402,138.18,138.11,24.027864]
[1726326532259,16.1665,138.18,138.11,24.027864]
[1726326532586,16.1665,138.18,138.08,30.34011516]
[1726326532886,16.1665,138.18,138.09,3.87721118]
[1726326533079,16.1665,138.18,138.08,30.34011516]
[1726326533278,16.1665,138.18,138.09,3.87761561]
[1726326533482,16.1665,138.18,138.08,30.34011516]
[1726326533671,16.1665,138.18,138.09,42.12346941]
[1726326533870,16.1665,138.18,138.09,38.24606916]
[1726326535182,16.1665,138.18,138.09,24.153354]
[1726326535389,16.1665,138.18,138.09,38.24606916]
[1726326536481,16.1665,138.18,138.1,14.09271516]
[1726326536683,16.1665,138.18,138.11,24.153354]
[1726326539185,16.1665,138.18,138.08,30.34011516]
[1726326539393,16.1665,138.18,138.09,24.153354]
[1726326539765,16.1665,138.18,138.09,38.24606916]
[1726326540267,16.1665,138.18,138.1,14.09271516]
[1726326540575,16.1665,138.18,138.11,24.153354]
[1726326544369,16.1665,138.18,138.11,0.25098]
[1726326545095,16.1665,138.18,138.1,24.027864]
[1726326545381,16.1665,138.18,138.1,0.25098]
[1726326545782,16.1665,138.18,138.1,14.34369516]
[1726326549092,16.1665,138.18,138.1,0.25098]
[1726326552095,16.1665,138.18,138.11,23.902374]
[1726326557486,16.1665,138.18,138.09,0.25098]
[1726326557695,16.1665,138.18,138.1,4.00546331]
[1726326557896,16.1665,138.18,138.1,0.12549]
[1726326560590,16.1665,138.18,138.08,16.2474]
[1726326560803,22.8232,138.18,138.09,3.88188627]
[1726326561097,22.8232,138.18,138.08,24.027864]
[1726326561303,22.8232,138.18,138.09,3.882908]
[1726326561504,22.8232,138.18,138.08,24.027864]
[1726326561681,22.8232,138.18,138.09,3.88289753]
[1726326562006,22.8232,138.18,138.08,24.027864]
[1726326562203,22.8232,138.18,138.09,3.88289523]
[1726326562512,22.8232,138.18,138.08,24.027864]
[1726326562687,22.8232,138.18,138.09,1.44676957]
[1726326563290,22.8232,138.18,138.08,24.027864]
[1726326563495,22.8232,138.18,138.09,4.00796521]
[1726326563687,22.8232,138.18,138.1,0.25098]
[1726326568509,22.8232,138.18,138.11,3.88089371]
[1726326568695,22.8232,138.18,138.1,0.25098]
[1726326568898,22.8232,138.18,138.11,3.88096048]
[1726326569206,22.8232,138.18,138.1,0.25098]
[1726326569506,22.8232,138.18,138.11,3.88095871]
[1726326569705,22.8232,138.18,138.1,0.25098]
[1726326569885,22.8232,138.18,138.11,3.88087323]
[1726326570211,22.8232,138.18,138.1,0.25098]
[1726326570387,22.8232,138.18,138.11,3.8805521]
[1726326570587,22.8232,138.18,138.1,0.25098]
[1726326572107,21.8232,138.18,138.1,0.25098]
[1726326572321,21.8232,138.18,138.11,0.12549]
[1726326573009,29.3838518,138.18,138.11,0.12549]
[1726326573519,21.8232,138.18,138.11,0.12549]
[1726326574021,15.1665,138.18,138.12,23.902374]
[1726326574186,15.1665,138.18,138.12,37.99508916]
[1726326574389,15.1665,138.18,138.13,0.25098]
[1726326580024,15.1665,138.18,138.12,0.12549]
[1726326580324,15.1665,138.18,138.12,0.25098]
[1726326580495,15.1665,138.18,138.1,14.09271516]
[1726326580818,15.1665,138.18,138.11,0.12549]
[1726326581721,15.1665,138.18,138.12,0.12549]
[1726326582115,15.1665,138.18,138.12,0.25098]
[1726326587204,15.1665,138.18,138.13,0.25098]
[1726326592134,15.1665,138.18,138.13,14.34369516]
[1726326601363,15.1665,138.18,138.14,14.21820516]
[1726326603047,15.1665,138.18,138.11,23.902374]
[1726326603231,15.1665,138.18,138.12,0.25098]
[1726326604049,6.6157,138.17,138.09,20.0]
[1726326604427,6.6157,138.17,138.09,34.09271516]
[1726326604653,6.6157,138.17,138.1,14.09271516]
[1726326605424,6.6157,138.17,138.11,0.12549]
[1726326606831,6.6157,138.17,138.1,24.027864]
[1726326610550,6.6157,138.17,138.1,14.34369516]
[1726326615257,6.6157,138.17,138.1,0.25098]
[1726326617443,6.6157,138.17,138.1,14.34369516]
[1726326620244,6.6157,138.17,138.1,0.25098]
[1726326621370,16.1319,138.16,138.04,22.6462]
[1726326621562,16.1319,138.16,138.08,14.09271516]
[1726326621736,16.1319,138.16,138.09,14.09271516]
[1726326621936,16.1319,138.16,138.11,14.09271516]
[1726326623168,16.1319,138.16,138.08,14.09271516]
[1726326629167,16.1319,138.16,138.07,0.25098]
[1726326629369,16.1319,138.16,138.08,14.09271516]
[1726326630765,16.1319,138.16,138.08,17.96994328]
[1726326630966,16.1319,138.16,138.09,1.37476748]
[1726326631559,16.1319,138.16,138.09,15.46748264]
[1726326637278,16.1319,138.16,138.09,1.37476748]
[1726326639156,16.1319,138.16,138.1,38.24606916]
[1726326639354,16.1319,138.16,138.11,1.44777965]
[1726326639875,16.1319,138.16,138.1,38.24606916]
[1726326640174,16.1319,138.16,138.11,1.44778175]
[1726326640378,16.1319,138.16,138.1,38.24606916]
[1726326644164,16.1319,138.16,138.1,24.153354]
[1726326645487,16.1319,138.16,138.08,14.09271516]
[1726326645777,16.1319,138.16,138.06,20.0]
[1726326645980,16.1319,138.16,138.06,34.09271516]
[1726326647276,16.1319,138.16,138.07,24.027864]
[1726326651489,16.1319,138.16,138.07,38.12057916]
[1726326662099,16.1319,138.16,138.08,0.12549]
[1726326662269,16.1319,138.16,138.09,0.12549]
[1726326662474,16.1319,138.16,138.09,0.25098]
[1726326663179,16.1319,138.16,138.08,0.12549]
[1726326663381,16.1319,138.16,138.07,24.153354]
[1726326664480,23.3699,138.16,138.07,0.12549]
[1726326664677,15.9407,138.14,138.06,23.776884]
[1726326667806,15.9407,138.14,138.05,0.5068501]
[1726326667979,15.9407,138.14,138.05,24.2837341]
[1726326668174,6.6152,138.13,138.05,0.2558701]
[1726326668388,15.9407,138.12,138.05,0.2558701]
[1726326668601,29.5681624,138.17,138.05,0.2558701]
[1726326668602,7.2413,138.1,138.05,0.2558701]
[1726326668777,15.9407,138.1,138.05,0.2558701]
[1726326674907,23.1818,138.1,138.05,0.2558701]
[1726326675204,16.1481,138.09,138.05,0.2558701]
[1726326683999,16.1481,138.07,138.05,0.2558701]
[1726326685594,43.902374,138.06,138.05,0.2558701]
[1726326685923,43.902374,138.06,138.01,0.2558701]
[1726326685924,40.050474,138.06,138.01,0.2558701]
[1726326690815,42.96824087,138.06,138.01,0.2558701]
[1726326700854,50.21164087,138.06,138.01,0.2558701]
[1726326701126,27.36919,138.05,138.01,0.2558701]
[1726326701336,0.12549,138.04,138.01,0.2558701]
[1726326702432,20.0,138.03,138.01,0.2558701]
[1726326708763,7.2448,138.03,138.01,0.2558701]
[1726326708944,7.2448,138.03,137.97,0.2558701]
[1726326708945,20.12549,138.02,137.97,0.2558701]
[1726326713639,35.82469,138.02,137.97,0.2558701]
[1726326717824,43.07009,138.02,137.97,0.2558701]
[1726326718233,23.776884,138.01,137.97,0.2558701]
[1726326720942,26.72650131,138.01,137.97,0.2558701]
[1726326721135,51.42788181,138.02,137.97,0.2558701]
[1726326721756,51.30239181,138.02,137.97,0.2558701]
[1726326726542,35.6992,138.02,137.97,0.2558701]
[1726326728545,0.12549,138.01,137.97,0.2558701]
[1726326731847,35.6992,138.02,137.97,0.2558701]
[1726326735071,35.6992,138.02,137.97,4.17187495]
[1726326735761,35.6992,138.02,137.97,0.2558701]
[1726326742370,35.6992,138.02,137.98,3.91581212]
[1726326742575,35.6992,138.02,137.97,0.2558701]
[1726326744175,35.6992,138.02,137.98,3.91586582]
[1726326744475,35.6992,138.02,137.97,0.2558701]
[1726326744676,35.6992,138.02,137.98,3.91586582]
[1726326744970,35.6992,138.02,137.97,0.2558701]
[1726326745171,35.6992,138.02,137.98,3.91586582]
[1726326745376,35.6992,138.02,137.97,0.2558701]
[1726326747571,35.6992,138.02,137.98,3.91608063]
[1726326747873,35.6992,138.02,137.97,0.2558701]
[1726326748076,35.6992,138.02,137.98,3.91608063]
[1726326748270,35.6992,138.02,137.97,0.2558701]
[1726326748467,35.6992,138.02,137.98,3.91607668]
[1726326748667,42.9445,138.02,137.98,3.91607668]
[1726326748862,42.9445,138.02,137.97,0.2558701]
[1726326750473,31.148274,138.01,137.97,0.2558701]
[1726326750688,20.0,138.0,137.97,0.2558701]
[1726326751976,20.0,138.01,137.97,0.2558701]
[1726326783198,23.902374,138.0,137.97,0.2558701]
[1726326790388,26.90528956,138.0,137.97,0.2558701]
[1726326794207,23.902374,138.0,137.97,0.2558701]
[1726326802909,20.0,138.01,137.97,0.2558701]
[1726326808402,23.902374,138.0,137.97,0.2558701]
[1726326817223,20.0,137.99,137.97,0.2558701]
[1726326818732,23.902374,138.0,137.97,0.2558701]
[1726326818931,20.0,137.99,137.97,0.2558701]
[1726326824605,20.0,138.01,137.97,0.2558701]
[1726326830118,0.12549,138.0,137.97,0.2558701]
[1726326835116,31.274364,138.0,137.97,0.2558701]
[1726326835315,20.0,137.99,137.97,0.2558701]
[1726326840038,23.902374,137.98,137.97,0.2558701]
[1726326840235,20.0,137.99,137.97,0.2558701]
[1726326840543,20.0,137.98,137.97,0.2558701]
[1726326840728,26.15718397,138.02,137.97,0.2558701]
[1726326841042,20.0,138.01,137.97,0.2558701]
[1726326857565,7.0,138.0,137.97,0.2558701]
[1726326857855,20.0,137.99,137.97,0.2558701]
[1726326891481,27.2471,137.99,137.97,0.2558701]
[1726326891866,20.0,137.99,137.97,0.2558701]
[1726326897168,27.247,137.99,137.97,0.2558701]
[1726326902496,31.275264,137.98,137.97,0.2558701]
[1726326902673,7.248,137.97,137.93,0.2558701]
[1726326902873,7.2485,137.96,137.93,0.2558701]
[1726326904186,27.248,137.97,137.93,0.2558701]
[1726326904874,23.902374,137.96,137.93,0.2558701]
[1726326905075,20.0,137.95,137.93,0.2558701]
[1726326906974,20.0,137.96,137.93,0.2558701]
[1726326907376,20.86982853,137.97,137.93,0.2558701]
[1726326916404,20.86982853,137.97,137.95,6.5377]
[1726326916589,7.0,138.0,137.96,16.4713]
[1726326928601,7.0,138.0,137.96,30.56401516]
[1726326931297,7.0,138.0,137.97,1.14105041]
[1726326932216,7.0,138.0,137.96,30.68950516]
[1726326932424,7.0,138.0,137.97,24.027864]
[1726326943001,7.0,138.0,137.97,38.12057916]
[1726326943830,7.0,138.0,137.98,14.09271516]
[1726326944720,7.0,138.0,137.97,38.12057916]
[1726326945435,7.0,138.0,137.97,24.027864]
[1726326945819,7.0,138.0,137.96,16.4713]
[1726326946806,7.0,138.0,137.95,6.5377]
[1726326947316,7.0,138.0,137.93,15.3108701]
[1726326948430,23.902374,137.99,137.93,0.2558701]
[1726326948621,15.7758,137.98,137.93,0.2558701]
[1726326949537,20.12549,137.97,137.93,0.2558701]
[1726326950212,23.776884,137.96,137.93,0.2558701]
[1726326951332,31.025384,137.96,137.93,0.2558701]
[1726326951535,20.12549,137.95,137.93,0.2558701]
[1726326951837,20.0,137.93,137.89,0.2558701]